[Event "Titled Tuesday Blitz September 14 2021"]
[White "Lagarde, Maxime"]
[Black "Deac, Bogdan-Daniel"]
[WhiteFideId "662399"]
[BlackFideId "1226380"]
[WhiteElo "2615"]
[BlackElo "2605"]
[Result "1-0"]
[Round "06"]
[TimeControl "180+1"]
[Date "2021.09.15"]
[WhiteClock "0:01:10"]
[BlackClock "0:00:07"]

1. Nf3 {[%clk 0:03:00]}  d5 {[%clk 0:02:59]} 2. g3 {[%clk 0:02:59]}  Nf6 {[%clk 0:02:57]} 3. Bg2 {[%clk 0:02:58]}  e6 {[%clk 0:02:57]} 4. O-O {[%clk 0:02:57]}  Be7 {[%clk 0:02:58]} 5. d3 {[%clk 0:02:57]}  O-O {[%clk 0:02:56]} 6. Nbd2 {[%clk 0:02:58]}  Nc6 {[%clk 0:02:56]} 7. d4 {[%clk 0:02:55]}  b6 {[%clk 0:02:55]} 8. c4 {[%clk 0:02:52]}  Bb7 {[%clk 0:02:41]} 9. b3 {[%clk 0:02:49]}  a5 {[%clk 0:02:33]} 10. a3 {[%clk 0:02:48]}  Na7 {[%clk 0:02:13]} 11. Bb2 {[%clk 0:02:45]}  Nc8 {[%clk 0:02:13]} 12. Ne5 {[%clk 0:02:41]}  c6 {[%clk 0:02:00]} 13. Rc1 {[%clk 0:02:38]}  Nd6 {[%clk 0:01:59]} 14. Qc2 {[%clk 0:02:37]}  Rc8 {[%clk 0:01:55]} 15. c5 {[%clk 0:02:34]}  bxc5 {[%clk 0:01:49]} 16. dxc5 {[%clk 0:02:33]}  Nb5 {[%clk 0:01:49]} 17. e4 {[%clk 0:02:28]}  Nc7 {[%clk 0:01:22]} 18. Rfd1 {[%clk 0:02:23]}  Na6 {[%clk 0:01:21]} 19. Nd3 {[%clk 0:02:21]}  Nd7 {[%clk 0:01:17]} 20. b4 {[%clk 0:02:20]}  axb4 {[%clk 0:01:17]} 21. axb4 {[%clk 0:02:21]}  Nc7 {[%clk 0:01:17]} 22. h4 {[%clk 0:02:09]}  Ba6 {[%clk 0:01:11]} 23. Nb3 {[%clk 0:02:06]}  Bf6 {[%clk 0:01:04]} 24. Na5 {[%clk 0:01:57]}  Bxd3 {[%clk 0:00:42]} 25. Rxd3 {[%clk 0:01:56]}  Nb5 {[%clk 0:00:43]} 26. Nxc6 {[%clk 0:01:51]}  Rxc6 {[%clk 0:00:39]} 27. exd5 {[%clk 0:01:52]}  exd5 {[%clk 0:00:35]} 28. Bxd5 {[%clk 0:01:52]}  Rc7 {[%clk 0:00:35]} 29. Bc4 {[%clk 0:01:52]}  Qb8 {[%clk 0:00:27]} 30. Rcd1 {[%clk 0:01:46]}  Ne5 {[%clk 0:00:24]} 31. Bxe5 {[%clk 0:01:45]}  Bxe5 {[%clk 0:00:25]} 32. Rf3 {[%clk 0:01:43]}  Nd4 {[%clk 0:00:22]} 33. Rxd4 {[%clk 0:01:43]}  Bxd4 {[%clk 0:00:23]} 34. Qe4 {[%clk 0:01:41]}  Rd7 {[%clk 0:00:17]} 35. c6 {[%clk 0:01:28]}  Rd6 {[%clk 0:00:14]} 36. b5 {[%clk 0:01:27]}  Qc7 {[%clk 0:00:11]} 37. Rxf7 {[%clk 0:01:25]}  Qxf7 {[%clk 0:00:08]} 38. Bxf7+ {[%clk 0:01:25]}  Kxf7 {[%clk 0:00:09]} 39. Qf4+ {[%clk 0:01:06]}  Ke7 {[%clk 0:00:08]} 40. Qxf8+ {[%clk 0:01:07]}  Kxf8 {[%clk 0:00:08]} 41. c7 {[%clk 0:01:07]}  Bxf2+ {[%clk 0:00:06]} 42. Kxf2 {[%clk 0:01:08]}  Rd2+ {[%clk 0:00:06]} 43. Ke3 {[%clk 0:01:09]}  Rc2 {[%clk 0:00:06]} 44. b6 {[%clk 0:01:09]}  Ke7 {[%clk 0:00:07]} 45. b7 {[%clk 0:01:10]}  Rxc7 {[%clk 0:00:07]} 46. b8=Q {[%clk 0:01:10]} 1-0


[Site "https://www.chess.com"]

[Event "Titled Tuesday Blitz September 14 2021"]
[White "Moroni, Luca Jr"]
[Black "Hansen, Eric"]
[WhiteFideId "865834"]
[BlackFideId "2606771"]
[WhiteElo "2491"]
[BlackElo "2568"]
[Result "0-1"]
[Round "06"]
[TimeControl "180+1"]
[Date "2021.09.15"]
[WhiteClock "0:00:03"]
[BlackClock "0:00:10"]

1. d4 {[%clk 0:03:00]}  Nf6 {[%clk 0:02:18]} 2. c4 {[%clk 0:03:00]}  e6 {[%clk 0:02:11]} 3. Nc3 {[%clk 0:02:59]}  Bb4 {[%clk 0:02:11]} 4. Nf3 {[%clk 0:03:00]}  O-O {[%clk 0:02:09]} 5. Bg5 {[%clk 0:02:59]}  h6 {[%clk 0:02:09]} 6. Bh4 {[%clk 0:02:59]}  c5 {[%clk 0:02:09]} 7. Rc1 {[%clk 0:02:58]}  cxd4 {[%clk 0:02:09]} 8. Nxd4 {[%clk 0:02:59]}  Nc6 {[%clk 0:02:05]} 9. e3 {[%clk 0:02:59]}  Be7 {[%clk 0:02:03]} 10. Be2 {[%clk 0:02:58]}  b6 {[%clk 0:01:59]} 11. O-O {[%clk 0:02:57]}  Bb7 {[%clk 0:01:59]} 12. Bf3 {[%clk 0:02:57]}  a6 {[%clk 0:01:52]} 13. Qd2 {[%clk 0:02:50]}  Rc8 {[%clk 0:01:42]} 14. Rfd1 {[%clk 0:02:46]}  Na5 {[%clk 0:01:35]} 15. b3 {[%clk 0:02:31]}  d6 {[%clk 0:01:31]} 16. Bg3 {[%clk 0:02:24]}  Qc7 {[%clk 0:01:26]} 17. Bxb7 {[%clk 0:02:16]}  Qxb7 {[%clk 0:01:25]} 18. Nde2 {[%clk 0:02:12]}  Rfd8 {[%clk 0:01:24]} 19. h3 {[%clk 0:02:07]}  Nc6 {[%clk 0:01:11]} 20. Nd4 {[%clk 0:02:00]}  Ne5 {[%clk 0:01:07]} 21. Qe2 {[%clk 0:01:56]}  Rc7 {[%clk 0:01:02]} 22. Bxe5 {[%clk 0:01:53]}  dxe5 {[%clk 0:01:02]} 23. Nf3 {[%clk 0:01:54]}  Rxd1+ {[%clk 0:00:56]} 24. Rxd1 {[%clk 0:01:55]}  e4 {[%clk 0:00:57]} 25. Nd2 {[%clk 0:01:17]}  b5 {[%clk 0:00:57]} 26. Rc1 {[%clk 0:01:03]}  Ba3 {[%clk 0:00:56]} 27. Rc2 {[%clk 0:01:02]}  Bb4 {[%clk 0:00:55]} 28. Nf1 {[%clk 0:00:42]}  bxc4 {[%clk 0:00:51]} 29. bxc4 {[%clk 0:00:43]}  Qc6 {[%clk 0:00:51]} 30. Nb1 {[%clk 0:00:35]}  Rd7 {[%clk 0:00:51]} 31. Nbd2 {[%clk 0:00:34]}  a5 {[%clk 0:00:48]} 32. Nb3 {[%clk 0:00:34]}  e5 {[%clk 0:00:38]} 33. Nbd2 {[%clk 0:00:19]}  Qd6 {[%clk 0:00:31]} 34. c5 {[%clk 0:00:18]}  Qd3 {[%clk 0:00:26]} 35. Nc4 {[%clk 0:00:15]}  Rd5 {[%clk 0:00:16]} 36. c6 {[%clk 0:00:09]}  Rc5 {[%clk 0:00:17]} 37. c7 {[%clk 0:00:05]}  Rxc7 {[%clk 0:00:15]} 38. a3 {[%clk 0:00:06]}  Bf8 {[%clk 0:00:10]} 39. Qxd3 {[%clk 0:00:03]}  exd3 {[%clk 0:00:10]} 40. Rc1 {[%clk 0:00:04]}  Bxa3 {[%clk 0:00:10]} 41. Rc3 {[%clk 0:00:04]}  Bb4 {[%clk 0:00:10]} 42. Rc1 {[%clk 0:00:04]}  d2 {[%clk 0:00:09]} 43. Nfxd2 {[%clk 0:00:03]}  Bxd2 {[%clk 0:00:09]} 44. Rd1 {[%clk 0:00:03]}  Rxc4 {[%clk 0:00:09]} 45. Rxd2 {[%clk 0:00:03]}  Rc8 {[%clk 0:00:10]} 46. Ra2 {[%clk 0:00:03]}  Ra8 {[%clk 0:00:10]} 0-1


[Site "https://www.chess.com"]

[Event "Titled Tuesday Blitz September 14 2021"]
[White "Mortazavi, Ali"]
[Black "Kovalev, Vladislav"]
[WhiteFideId "401323"]
[BlackFideId "13504398"]
[WhiteElo "2339"]
[BlackElo "2573"]
[Result "0-1"]
[Round "06"]
[TimeControl "180+1"]
[Date "2021.09.15"]
[WhiteClock "0:00:03"]
[BlackClock "0:00:07"]

1. e4 {[%clk 0:03:00]}  e5 {[%clk 0:02:59]} 2. Bc4 {[%clk 0:03:00]}  Nf6 {[%clk 0:02:59]} 3. d3 {[%clk 0:03:01]}  c6 {[%clk 0:02:58]} 4. Nf3 {[%clk 0:03:01]}  d5 {[%clk 0:02:57]} 5. Bb3 {[%clk 0:02:59]}  a5 {[%clk 0:02:57]} 6. a3 {[%clk 0:02:58]}  Bd6 {[%clk 0:02:54]} 7. Nc3 {[%clk 0:02:58]}  d4 {[%clk 0:02:52]} 8. Ne2 {[%clk 0:02:58]}  Nbd7 {[%clk 0:02:50]} 9. Ng3 {[%clk 0:02:51]}  Nc5 {[%clk 0:02:50]} 10. Ba2 {[%clk 0:02:52]}  Be6 {[%clk 0:02:22]} 11. Bxe6 {[%clk 0:02:46]}  fxe6 {[%clk 0:02:14]} 12. O-O {[%clk 0:02:32]}  O-O {[%clk 0:02:14]} 13. c3 {[%clk 0:02:22]}  dxc3 {[%clk 0:01:40]} 14. bxc3 {[%clk 0:02:22]}  Bc7 {[%clk 0:01:41]} 15. Be3 {[%clk 0:01:56]}  Nxd3 {[%clk 0:01:38]} 16. Qb3 {[%clk 0:01:56]}  Qc8 {[%clk 0:01:31]} 17. Rad1 {[%clk 0:01:31]}  a4 {[%clk 0:01:28]} 18. Qa2 {[%clk 0:01:30]}  Nf4 {[%clk 0:01:29]} 19. Bxf4 {[%clk 0:01:29]}  exf4 {[%clk 0:01:29]} 20. Nf5 {[%clk 0:01:30]}  Re8 {[%clk 0:01:08]} 21. N5d4 {[%clk 0:00:54]}  Nxe4 {[%clk 0:01:01]} 22. Rde1 {[%clk 0:00:46]}  Nxc3 {[%clk 0:00:58]} 23. Qc2 {[%clk 0:00:46]}  Nd5 {[%clk 0:00:47]} 24. Ng5 {[%clk 0:00:46]}  Nf6 {[%clk 0:00:45]} 25. Ndxe6 {[%clk 0:00:38]}  h6 {[%clk 0:00:40]} 26. Qg6 {[%clk 0:00:27]}  Qd7 {[%clk 0:00:12]} 27. Rd1 {[%clk 0:00:20]}  Qe7 {[%clk 0:00:13]} 28. Nxc7 {[%clk 0:00:17]}  Qxc7 {[%clk 0:00:13]} 29. Nf3 {[%clk 0:00:15]}  Qf7 {[%clk 0:00:13]} 30. Qb1 {[%clk 0:00:12]}  Nd5 {[%clk 0:00:13]} 31. Nd4 {[%clk 0:00:11]}  Nc3 {[%clk 0:00:13]} 32. Qc2 {[%clk 0:00:10]}  Nxd1 {[%clk 0:00:14]} 33. Rxd1 {[%clk 0:00:09]}  Rad8 {[%clk 0:00:14]} 34. h3 {[%clk 0:00:07]}  Qd5 {[%clk 0:00:10]} 35. Kh2 {[%clk 0:00:03]}  f3 {[%clk 0:00:07]} 0-1


[Site "https://www.chess.com"]

[Event "Titled Tuesday Blitz September 14 2021"]
[White "Nazari, Arad"]
[Black "Sonis, Francesco"]
[WhiteFideId "12577324"]
[BlackFideId "895733"]
[WhiteElo "2153"]
[BlackElo "2373"]
[Result "0-1"]
[Round "06"]
[TimeControl "180+1"]
[Date "2021.09.15"]
[WhiteClock "0:00:45"]
[BlackClock "0:02:33"]

1. e4 {[%clk 0:03:00]}  Nc6 {[%clk 0:02:57]} 2. Nf3 {[%clk 0:02:59]}  e5 {[%clk 0:02:57]} 3. Bb5 {[%clk 0:02:59]}  a6 {[%clk 0:02:57]} 4. Bxc6 {[%clk 0:03:00]}  dxc6 {[%clk 0:02:57]} 5. d4 {[%clk 0:03:01]}  exd4 {[%clk 0:02:56]} 6. Qxd4 {[%clk 0:03:02]}  Qxd4 {[%clk 0:02:56]} 7. Nxd4 {[%clk 0:03:02]}  Bd7 {[%clk 0:02:57]} 8. Nc3 {[%clk 0:03:02]}  O-O-O {[%clk 0:02:58]} 9. Be3 {[%clk 0:03:01]}  Re8 {[%clk 0:02:57]} 10. O-O-O {[%clk 0:02:57]}  Bb4 {[%clk 0:02:57]} 11. f3 {[%clk 0:02:57]}  f5 {[%clk 0:02:56]} 12. Nde2 {[%clk 0:02:53]}  Nf6 {[%clk 0:02:54]} 13. a3 {[%clk 0:02:28]}  Bd6 {[%clk 0:02:50]} 14. Bd4 {[%clk 0:02:12]}  fxe4 {[%clk 0:02:48]} 15. Bxf6 {[%clk 0:02:11]}  exf3 {[%clk 0:02:46]} 16. Bxg7 {[%clk 0:02:05]}  fxe2 {[%clk 0:02:45]} 17. Rde1 {[%clk 0:01:39]}  Rhg8 {[%clk 0:02:44]} 18. Bh6 {[%clk 0:01:28]}  Rxg2 {[%clk 0:02:43]} 19. Kd2 {[%clk 0:01:26]}  Bxh2 {[%clk 0:02:42]} 20. Be3 {[%clk 0:01:19]}  Bg4 {[%clk 0:02:40]} 21. Kd3 {[%clk 0:01:05]}  Bg3 {[%clk 0:02:36]} 22. Bd2 {[%clk 0:00:51]}  Rd8+ {[%clk 0:02:33]} 23. Ke3 {[%clk 0:00:47]}  Bf2+ {[%clk 0:02:32]} 24. Kf4 {[%clk 0:00:45]}  Rxd2 {[%clk 0:02:33]} 0-1


[Site "https://www.chess.com"]

[Event "Titled Tuesday Blitz September 14 2021"]
[White "Rodriguez Hernandez, Luis Daniel"]
[Black "Kamsky, Gata"]
[WhiteFideId "3506770"]
[BlackFideId "2000024"]
[WhiteElo "2133"]
[BlackElo "2603"]
[Result "0-1"]
[Round "06"]
[TimeControl "180+1"]
[Date "2021.09.15"]
[WhiteClock "0:01:18"]
[BlackClock "0:01:43"]

1. e4 {[%clk 0:03:00]}  e5 {[%clk 0:02:59]} 2. Nf3 {[%clk 0:03:00]}  Nc6 {[%clk 0:02:58]} 3. Bc4 {[%clk 0:03:00]}  Nf6 {[%clk 0:02:57]} 4. Ng5 {[%clk 0:03:00]}  d5 {[%clk 0:02:56]} 5. exd5 {[%clk 0:03:01]}  Na5 {[%clk 0:02:56]} 6. Bb5+ {[%clk 0:03:02]}  Bd7 {[%clk 0:02:54]} 7. Qe2 {[%clk 0:03:00]}  Be7 {[%clk 0:02:53]} 8. Nf3 {[%clk 0:03:01]}  O-O {[%clk 0:02:22]} 9. Nxe5 {[%clk 0:03:01]}  Bxb5 {[%clk 0:02:20]} 10. Qxb5 {[%clk 0:03:01]}  c6 {[%clk 0:02:15]} 11. dxc6 {[%clk 0:03:00]}  Nxc6 {[%clk 0:02:11]} 12. Nf3 {[%clk 0:02:24]}  Nd4 {[%clk 0:02:03]} 13. Nxd4 {[%clk 0:02:24]}  Qxd4 {[%clk 0:02:03]} 14. O-O {[%clk 0:02:10]}  Bd6 {[%clk 0:02:03]} 15. c3 {[%clk 0:01:58]}  Bxh2+ {[%clk 0:02:01]} 16. Kxh2 {[%clk 0:01:39]}  Qh4+ {[%clk 0:02:02]} 17. Kg1 {[%clk 0:01:39]}  Ng4 {[%clk 0:02:01]} 18. Rd1 {[%clk 0:01:32]}  Qxf2+ {[%clk 0:02:00]} 19. Kh1 {[%clk 0:01:32]}  Qh4+ {[%clk 0:01:53]} 20. Kg1 {[%clk 0:01:32]}  Rae8 {[%clk 0:01:52]} 21. Qc5 {[%clk 0:01:27]}  Re5 {[%clk 0:01:47]} 22. Qd4 {[%clk 0:01:18]}  Rf5 {[%clk 0:01:43]} 0-1


[Site "https://www.chess.com"]

[Event "Titled Tuesday Blitz September 14 2021"]
[White "Seliverstov, Vladimir"]
[Black "Sadhwani, Raunak"]
[WhiteFideId "4192036"]
[BlackFideId "35093487"]
[WhiteElo "2489"]
[BlackElo "2517"]
[Result "0-1"]
[Round "06"]
[TimeControl "180+1"]
[Date "2021.09.15"]
[WhiteClock "0:01:02"]
[BlackClock "0:00:43"]

1. d4 {[%clk 0:03:00]}  d6 {[%clk 0:02:58]} 2. Bf4 {[%clk 0:03:00]}  Nf6 {[%clk 0:02:57]} 3. e3 {[%clk 0:03:01]}  g6 {[%clk 0:02:58]} 4. Nf3 {[%clk 0:03:01]}  Bg7 {[%clk 0:02:58]} 5. h3 {[%clk 0:03:02]}  O-O {[%clk 0:02:59]} 6. Be2 {[%clk 0:03:02]}  Nfd7 {[%clk 0:03:00]} 7. Bh2 {[%clk 0:03:00]}  e5 {[%clk 0:03:00]} 8. dxe5 {[%clk 0:03:01]}  Nxe5 {[%clk 0:02:58]} 9. Nc3 {[%clk 0:03:00]}  Nbc6 {[%clk 0:02:57]} 10. O-O {[%clk 0:02:59]}  h6 {[%clk 0:02:55]} 11. Nxe5 {[%clk 0:02:52]}  dxe5 {[%clk 0:02:53]} 12. Qxd8 {[%clk 0:02:48]}  Rxd8 {[%clk 0:02:54]} 13. Nb5 {[%clk 0:02:42]}  Bf5 {[%clk 0:02:43]} 14. Rac1 {[%clk 0:02:26]}  Rac8 {[%clk 0:02:42]} 15. Bc4 {[%clk 0:02:13]}  a6 {[%clk 0:02:38]} 16. Nc3 {[%clk 0:02:09]}  b5 {[%clk 0:02:38]} 17. Bd5 {[%clk 0:02:00]}  Nb4 {[%clk 0:02:12]} 18. Bb3 {[%clk 0:02:00]}  c5 {[%clk 0:02:07]} 19. a3 {[%clk 0:01:59]}  c4 {[%clk 0:02:02]} 20. axb4 {[%clk 0:01:52]}  cxb3 {[%clk 0:02:02]} 21. cxb3 {[%clk 0:01:53]}  Be6 {[%clk 0:02:02]} 22. Ne4 {[%clk 0:01:50]}  Bxb3 {[%clk 0:02:00]} 23. Rc5 {[%clk 0:01:49]}  Rxc5 {[%clk 0:01:38]} 24. Nxc5 {[%clk 0:01:44]}  Bc4 {[%clk 0:01:38]} 25. Rc1 {[%clk 0:01:39]}  Rd6 {[%clk 0:01:13]} 26. e4 {[%clk 0:01:29]}  f6 {[%clk 0:01:03]} 27. f3 {[%clk 0:01:23]}  h5 {[%clk 0:01:02]} 28. Bg3 {[%clk 0:01:22]}  Bh6 {[%clk 0:01:02]} 29. Ra1 {[%clk 0:01:18]}  Rd2 {[%clk 0:00:55]} 30. Rxa6 {[%clk 0:01:14]}  Be3+ {[%clk 0:00:56]} 31. Kh2 {[%clk 0:01:11]}  Bf1 {[%clk 0:00:56]} 32. Bh4 {[%clk 0:01:07]}  g5 {[%clk 0:00:48]} 33. Be1 {[%clk 0:01:01]}  Rxg2+ {[%clk 0:00:44]} 34. Kh1 {[%clk 0:01:01]}  Rg1+ {[%clk 0:00:42]} 35. Kh2 {[%clk 0:01:01]}  Rg2+ {[%clk 0:00:42]} 36. Kh1 {[%clk 0:01:02]}  Re2 {[%clk 0:00:43]} 0-1


[Site "https://www.chess.com"]

[Event "Titled Tuesday Blitz September 14 2021"]
[White "Stoyanov, Tsvetan"]
[Black "Pridorozhni, Aleksei"]
[WhiteFideId "2917173"]
[BlackFideId "4127870"]
[WhiteElo "2191"]
[BlackElo "2565"]
[Result "1-0"]
[Round "06"]
[TimeControl "180+1"]
[Date "2021.09.15"]
[WhiteClock "0:00:04"]
[BlackClock "0:00:55"]

1. e4 {[%clk 0:03:00]}  c5 {[%clk 0:02:59]} 2. Nf3 {[%clk 0:03:01]}  e6 {[%clk 0:03:00]} 3. d4 {[%clk 0:03:01]}  cxd4 {[%clk 0:03:01]} 4. Nxd4 {[%clk 0:03:02]}  Nf6 {[%clk 0:03:02]} 5. Nc3 {[%clk 0:03:01]}  Nc6 {[%clk 0:03:02]} 6. Ndb5 {[%clk 0:03:01]}  Bc5 {[%clk 0:03:02]} 7. Bf4 {[%clk 0:02:59]}  O-O {[%clk 0:03:02]} 8. Bc7 {[%clk 0:02:59]}  Qe7 {[%clk 0:03:03]} 9. Bd6 {[%clk 0:03:00]}  Bxd6 {[%clk 0:03:03]} 10. Qxd6 {[%clk 0:03:01]}  Qd8 {[%clk 0:03:04]} 11. Be2 {[%clk 0:02:58]}  a6 {[%clk 0:03:03]} 12. Nc7 {[%clk 0:02:58]}  Ra7 {[%clk 0:03:02]} 13. e5 {[%clk 0:02:55]}  Nxe5 {[%clk 0:02:54]} 14. Qxe5 {[%clk 0:02:41]}  b6 {[%clk 0:02:54]} 15. N7b5 {[%clk 0:02:31]}  axb5 {[%clk 0:02:54]} 16. Nxb5 {[%clk 0:02:32]}  Ra5 {[%clk 0:02:53]} 17. O-O {[%clk 0:02:25]}  Bb7 {[%clk 0:02:49]} 18. Rfd1 {[%clk 0:02:16]}  Bc6 {[%clk 0:02:46]} 19. a4 {[%clk 0:02:16]}  Qa8 {[%clk 0:02:42]} 20. Qg3 {[%clk 0:01:23]}  Rxa4 {[%clk 0:02:33]} 21. Rxa4 {[%clk 0:01:23]}  Qxa4 {[%clk 0:02:33]} 22. Nd4 {[%clk 0:01:24]}  Be4 {[%clk 0:02:26]} 23. Bb5 {[%clk 0:01:21]}  Qb4 {[%clk 0:02:23]} 24. b3 {[%clk 0:01:13]}  Qc5 {[%clk 0:02:12]} 25. c4 {[%clk 0:01:08]}  d5 {[%clk 0:02:12]} 26. h3 {[%clk 0:00:57]}  h6 {[%clk 0:02:08]} 27. Qc3 {[%clk 0:00:47]}  Rc8 {[%clk 0:02:05]} 28. Ba6 {[%clk 0:00:44]}  Ra8 {[%clk 0:02:03]} 29. Bb5 {[%clk 0:00:37]}  Bg6 {[%clk 0:01:55]} 30. b4 {[%clk 0:00:35]}  Qc7 {[%clk 0:01:54]} 31. Qb3 {[%clk 0:00:32]}  dxc4 {[%clk 0:01:46]} 32. Bxc4 {[%clk 0:00:33]}  Rd8 {[%clk 0:01:42]} 33. Bf1 {[%clk 0:00:23]}  Ne4 {[%clk 0:01:32]} 34. Nb5 {[%clk 0:00:19]}  Qb8 {[%clk 0:01:32]} 35. Rxd8+ {[%clk 0:00:14]}  Qxd8 {[%clk 0:01:33]} 36. Qe3 {[%clk 0:00:15]}  Nf6 {[%clk 0:01:30]} 37. Qd4 {[%clk 0:00:09]}  Qxd4 {[%clk 0:01:21]} 38. Nxd4 {[%clk 0:00:10]}  Kf8 {[%clk 0:01:21]} 39. Bc4 {[%clk 0:00:10]}  Ke7 {[%clk 0:01:19]} 40. f4 {[%clk 0:00:10]}  Be4 {[%clk 0:01:18]} 41. Kf2 {[%clk 0:00:10]}  Bd5 {[%clk 0:01:17]} 42. Bd3 {[%clk 0:00:10]}  Kd6 {[%clk 0:01:16]} 43. g3 {[%clk 0:00:09]}  g5 {[%clk 0:01:14]} 44. Ke3 {[%clk 0:00:08]}  gxf4+ {[%clk 0:01:13]} 45. gxf4 {[%clk 0:00:08]}  Nd7 {[%clk 0:01:13]} 46. f5 {[%clk 0:00:07]}  e5 {[%clk 0:01:11]} 47. Nb5+ {[%clk 0:00:07]}  Ke7 {[%clk 0:01:12]} 48. Nc3 {[%clk 0:00:07]}  Bc6 {[%clk 0:01:10]} 49. Be4 {[%clk 0:00:08]}  Kd6 {[%clk 0:01:10]} 50. b5 {[%clk 0:00:05]}  Bxe4 {[%clk 0:01:10]} 51. Nxe4+ {[%clk 0:00:05]}  Kd5 {[%clk 0:01:10]} 52. Nf2 {[%clk 0:00:04]}  Nf6 {[%clk 0:01:08]} 53. Nd3 {[%clk 0:00:04]}  e4 {[%clk 0:01:06]} 54. Nb4+ {[%clk 0:00:03]}  Kc5 {[%clk 0:01:06]} 55. Nc6 {[%clk 0:00:03]}  Kxb5 {[%clk 0:01:07]} 56. Ne5 {[%clk 0:00:03]}  Kc5 {[%clk 0:01:06]} 57. Nxf7 {[%clk 0:00:04]}  b5 {[%clk 0:01:07]} 58. Nxh6 {[%clk 0:00:04]}  b4 {[%clk 0:01:07]} 59. Kd2 {[%clk 0:00:02]}  Kd4 {[%clk 0:01:05]} 60. Ng4 {[%clk 0:00:02]}  Nxg4 {[%clk 0:00:50]} 61. hxg4 {[%clk 0:00:02]}  e3+ {[%clk 0:00:51]} 62. Ke2 {[%clk 0:00:03]}  b3 {[%clk 0:00:51]} 63. f6 {[%clk 0:00:03]}  b2 {[%clk 0:00:52]} 64. f7 {[%clk 0:00:03]}  b1=Q {[%clk 0:00:53]} 65. f8=Q {[%clk 0:00:04]}  Qd3+ {[%clk 0:00:54]} 66. Ke1 {[%clk 0:00:04]}  Qf1+ {[%clk 0:00:55]} 67. Kxf1 {[%clk 0:00:04]} 1-0


[Site "https://www.chess.com"]

[Event "Titled Tuesday Blitz September 14 2021"]
[White "Sviridov_Valery"]
[Black "Makarian, Rudik"]
[BlackFideId "44105681"]
[WhiteElo "2964"]
[BlackElo "2411"]
[Result "1-0"]
[Round "06"]
[TimeControl "180+1"]
[Date "2021.09.15"]
[WhiteClock "0:00:58"]
[BlackClock "0:00:05"]

1. Nf3 {[%clk 0:03:00]}  Nf6 {[%clk 0:02:58]} 2. g3 {[%clk 0:03:01]}  g6 {[%clk 0:02:58]} 3. Bg2 {[%clk 0:03:01]}  Bg7 {[%clk 0:02:59]} 4. O-O {[%clk 0:03:01]}  c5 {[%clk 0:03:00]} 5. c4 {[%clk 0:03:01]}  Nc6 {[%clk 0:03:00]} 6. Nc3 {[%clk 0:03:01]}  d6 {[%clk 0:03:00]} 7. d4 {[%clk 0:03:00]}  cxd4 {[%clk 0:03:01]} 8. Nxd4 {[%clk 0:03:00]}  Bd7 {[%clk 0:03:01]} 9. b3 {[%clk 0:02:59]}  Qc8 {[%clk 0:03:00]} 10. Bb2 {[%clk 0:02:54]}  h5 {[%clk 0:02:57]} 11. h4 {[%clk 0:02:51]}  Bh3 {[%clk 0:02:53]} 12. Rc1 {[%clk 0:02:50]}  O-O {[%clk 0:02:51]} 13. Nd5 {[%clk 0:02:49]}  Re8 {[%clk 0:02:40]} 14. Nxc6 {[%clk 0:02:48]}  bxc6 {[%clk 0:02:41]} 15. Nxf6+ {[%clk 0:02:48]}  exf6 {[%clk 0:02:34]} 16. e3 {[%clk 0:02:42]}  Bxg2 {[%clk 0:02:33]} 17. Kxg2 {[%clk 0:02:43]}  Qe6 {[%clk 0:02:30]} 18. Qf3 {[%clk 0:02:42]}  Rac8 {[%clk 0:02:00]} 19. Rfd1 {[%clk 0:02:40]}  f5 {[%clk 0:01:58]} 20. Bxg7 {[%clk 0:02:39]}  Kxg7 {[%clk 0:01:59]} 21. Rd4 {[%clk 0:02:38]}  Qe5 {[%clk 0:01:48]} 22. Rcd1 {[%clk 0:02:38]}  Re6 {[%clk 0:01:48]} 23. R1d2 {[%clk 0:02:35]}  a5 {[%clk 0:01:41]} 24. R2d3 {[%clk 0:02:15]}  Rc7 {[%clk 0:01:32]} 25. Qd1 {[%clk 0:02:14]}  Rd7 {[%clk 0:01:29]} 26. Qd2 {[%clk 0:02:14]}  Qc5 {[%clk 0:01:26]} 27. Qb2 {[%clk 0:02:08]}  Kg8 {[%clk 0:01:25]} 28. a3 {[%clk 0:02:08]}  Rb7 {[%clk 0:01:20]} 29. Qc1 {[%clk 0:01:59]}  Qe5 {[%clk 0:01:15]} 30. Qd2 {[%clk 0:01:54]}  Rd7 {[%clk 0:01:13]} 31. b4 {[%clk 0:01:53]}  axb4 {[%clk 0:01:14]} 32. axb4 {[%clk 0:01:54]}  Kg7 {[%clk 0:01:09]} 33. Qd1 {[%clk 0:01:40]}  c5 {[%clk 0:01:02]} 34. bxc5 {[%clk 0:01:36]}  Qxc5 {[%clk 0:01:03]} 35. Qa4 {[%clk 0:01:33]}  Rc7 {[%clk 0:01:00]} 36. Qa1 {[%clk 0:01:28]}  Kg8 {[%clk 0:00:55]} 37. Ra3 {[%clk 0:01:27]}  Rc8 {[%clk 0:00:49]} 38. Ra5 {[%clk 0:01:23]}  Qc6+ {[%clk 0:00:47]} 39. Kg1 {[%clk 0:01:23]}  Re4 {[%clk 0:00:45]} 40. Ra6 {[%clk 0:01:22]}  Qe8 {[%clk 0:00:34]} 41. Raxd6 {[%clk 0:01:21]}  Ra8 {[%clk 0:00:17]} 42. Qxa8 {[%clk 0:01:19]}  Qxa8 {[%clk 0:00:16]} 43. Rd8+ {[%clk 0:01:20]}  Qxd8 {[%clk 0:00:17]} 44. Rxd8+ {[%clk 0:01:20]}  Kg7 {[%clk 0:00:18]} 45. Rd4 {[%clk 0:01:18]}  Re6 {[%clk 0:00:18]} 46. Kg2 {[%clk 0:01:08]}  Rc6 {[%clk 0:00:18]} 47. Kf3 {[%clk 0:01:08]}  Kf6 {[%clk 0:00:18]} 48. Ke2 {[%clk 0:01:08]}  Ke6 {[%clk 0:00:17]} 49. Kd3 {[%clk 0:01:05]}  Ra6 {[%clk 0:00:17]} 50. Kc3 {[%clk 0:01:06]}  Ra3+ {[%clk 0:00:17]} 51. Kb2 {[%clk 0:01:06]}  Ra8 {[%clk 0:00:14]} 52. Kb3 {[%clk 0:01:06]}  Rb8+ {[%clk 0:00:14]} 53. Kc3 {[%clk 0:01:06]}  Ra8 {[%clk 0:00:15]} 54. c5 {[%clk 0:01:05]}  Ra1 {[%clk 0:00:13]} 55. Kb4 {[%clk 0:01:00]}  Rb1+ {[%clk 0:00:09]} 56. Kc4 {[%clk 0:01:00]}  Rb2 {[%clk 0:00:09]} 57. c6 {[%clk 0:00:58]}  Rxf2 {[%clk 0:00:08]} 58. Kc5 {[%clk 0:00:58]}  Rc2+ {[%clk 0:00:08]} 59. Kb6 {[%clk 0:00:58]}  f6 {[%clk 0:00:08]} 60. c7 {[%clk 0:00:58]}  g5 {[%clk 0:00:08]} 61. Kb7 {[%clk 0:00:58]}  Rb2+ {[%clk 0:00:08]} 62. Kc8 {[%clk 0:00:58]}  Rc2 {[%clk 0:00:08]} 63. Kd8 {[%clk 0:00:57]}  Ke5 {[%clk 0:00:07]} 64. c8=Q {[%clk 0:00:57]}  Rxc8+ {[%clk 0:00:08]} 65. Kxc8 {[%clk 0:00:58]}  f4 {[%clk 0:00:05]} 66. gxf4+ {[%clk 0:00:58]} 1-0


[Site "https://www.chess.com"]